bitfinex/quotes_ETHUSD_20230109
["timestamp","ask_amount","ask_price","bid_price","bid_amount"]
[1673281946032,8.36e-06,1340.5,1340.4,61.44103142]
[1673281946572,9.4104,1340.9,1340.5,10.96188164]
[1673281946748,0.066,1340.9,1340.7,15.325]
[1673281946959,1.69732583,1341.1,1340.8,27.49535064]
[1673281946960,1.11662735,1341.1,1340.8,27.49535064]
[1673281947167,4.53273596,1341.2,1341.0,1.336]
[1673281947168,2.856731,1341.2,1341.0,1.336]
[1673281947384,1.11662735,1341.2,1341.1,3.79766064]
[1673281947593,2.78536808,1341.2,1341.1,26.16734064]
[1673281947915,1.11662735,1341.2,1341.1,43.3402747]
[1673281948282,1.25228399,1341.3,1341.1,44.6652747]
[1673281950241,0.13565664,1341.3,1341.1,44.6652747]
[1673281951345,0.13565664,1341.3,1341.1,20.9705947]
[1673281951559,2.91765293,1341.3,1341.1,14.066]
[1673281951769,1.25228399,1341.3,1341.1,28.97902]
[1673281951937,2.92638764,1341.3,1341.1,28.97902]
[1673281952304,1.25228399,1341.3,1341.1,36.43558]
[1673281952465,2.91691396,1341.3,1341.1,36.43558]
[1673281952813,1.25228399,1341.3,1341.1,36.43558]
[1673281953757,0.13565664,1341.3,1341.1,36.43558]
[1673281958591,0.36535266,1341.3,1341.1,7.52246]
[1673281958904,0.13565664,1341.3,1341.1,0.066]
[1673281959119,0.13565664,1341.3,1341.1,22.36901]
[1673281959309,0.13565664,1341.3,1341.1,22.43501]
[1673281960049,6.64e-06,1341.3,1341.1,26.23267064]
[1673281960223,6.64e-06,1341.3,1341.2,24.99126706]
[1673281960435,6.64e-06,1341.3,1341.2,25.05726706]
[1673281962224,6.64e-06,1341.3,1341.2,28.8549277]
[1673281963698,6.64e-06,1341.3,1341.2,42.8549277]
[1673281964651,6.64e-06,1341.3,1341.2,49.26128488]
[1673281964864,6.64e-06,1341.3,1341.2,49.82068488]
[1673281965483,6.64e-06,1341.3,1341.2,64.62018488]
[1673281969054,6.64e-06,1341.3,1341.2,63.8638277]
[1673281970041,6.64e-06,1341.3,1341.2,64.62018488]
[1673281970360,6.64e-06,1341.3,1341.2,68.45018488]
[1673281970532,6.64e-06,1341.3,1341.2,76.32218488]
[1673281971894,6.64e-06,1341.3,1341.2,75.76278488]
[1673281973388,6.64e-06,1341.3,1341.2,74.43778488]
[1673281973784,6.64e-06,1341.3,1341.2,82.43778488]
[1673281973989,0.12034533,1341.5,1341.3,0.00199336]
[1673281974208,0.066,1341.7,1341.4,58.28922064]
[1673281974438,0.6952796,1341.9,1341.4,58.28922064]
[1673281974439,0.1361796,1341.9,1341.6,28.44766064]
[1673281974682,0.1361796,1341.9,1341.8,14.0]
[1673281974866,0.1361796,1341.9,1341.8,40.22167064]
[1673281975094,0.1361796,1341.9,1341.8,48.2891097]
[1673281975468,0.1361796,1341.9,1341.8,49.6181097]
[1673281978310,9.6e-06,1341.9,1341.8,57.0937447]
[1673281978721,9.6e-06,1341.9,1341.8,66.4297447]
[1673281981976,2.2e-06,1342.2,1342.0,7.45156]
[1673281982239,2.2e-06,1342.2,1342.1,22.87881664]
[1673281982403,2.2e-06,1342.2,1342.1,60.19981664]
[1673281983777,2.2e-06,1342.2,1342.1,51.41281664]
[1673281985356,2.2e-06,1342.2,1342.1,43.96181664]
[1673281986006,2.2e-06,1342.2,1342.1,43.21666064]
[1673281986225,2.2e-06,1342.2,1342.1,0.066]
[1673281986554,2.2e-06,1342.2,1342.0,14.066]
[1673281986773,2.2e-06,1342.2,1342.0,28.96883]
[1673281986913,3.5000022,1342.2,1342.0,14.066]
[1673281987129,1.331,1342.1,1342.0,0.066]
[1673281987348,1.331,1342.1,1341.8,21.51827]
[1673281988294,1.331,1342.1,1341.8,28.97094]
[1673281988715,1.331,1342.1,1341.8,14.066]
[1673281989191,8.78764,1342.0,1341.8,14.066]
[1673281989345,1.327,1341.9,1341.8,14.066]
[1673281989555,1.327,1341.9,1341.8,17.066]
[1673281990660,1.327,1341.9,1341.8,14.066]
[1673281990830,9.33822,1341.9,1341.8,0.066]
[1673281991061,16.29524,1341.9,1341.8,0.002]
[1673281991262,16.29524,1341.9,1341.6,14.064]
[1673281991263,12.34512,1341.9,1341.6,14.066]
[1673281991580,1.336,1341.8,1341.6,21.51967]
[1673281992440,1.336,1341.8,1341.6,0.066]
[1673281992615,1.336,1341.7,1341.5,0.066]
[1673281992841,1.336,1341.7,1341.4,33.03299]
[1673281993023,4.836,1341.7,1341.4,33.03299]
[1673281993489,1.331,1341.6,1341.4,40.48788]
[1673281993652,1.331,1341.6,1341.4,33.03299]
[1673281993862,1.331,1341.6,1341.4,4.124]
[1673281993863,1.336,1341.5,1341.4,4.124]
[1673281994112,1.336,1341.5,1341.4,4.058]
[1673281994305,8.79034,1341.5,1341.3,0.06799336]
[1673281994497,1.333,1341.4,1341.3,0.00199336]
[1673281994722,2.664,1341.4,1341.3,7.45744336]
[1673281994913,2.664,1341.4,1341.3,23.30874124]
[1673281995130,1.401,1341.5,1341.3,23.30874124]
[1673281995473,1.335,1341.5,1341.3,23.30874124]
[1673281996185,1.335,1341.5,1341.3,27.10640188]
[1673281996395,1.331,1341.6,1341.3,27.10640188]
[1673281996623,1.8892,1341.7,1341.5,22.36302]
[1673281996816,1.8892,1341.7,1341.5,22.42902]
[1673281998226,1.9611,1341.8,1341.5,22.42902]
[1673281998444,1.8951,1341.8,1341.5,22.42902]
[1673281999479,0.5591,1341.8,1341.5,26.22668064]
[1673281999656,0.5591,1341.8,1341.6,16.62266806]
[1673281999910,8.5809,1341.9,1341.7,22.35969]
[1673282000085,8.5809,1341.9,1341.7,22.42569]
[1673282000314,0.066,1341.9,1341.7,26.22335064]
[1673282000526,1.9611,1342.0,1341.7,26.22335064]
[1673282000738,1.8951,1342.0,1341.8,2.62233506]
[1673282000916,1.8951,1342.0,1341.9,14.90424]
[1673282001267,1.8951,1342.0,1341.9,14.97024]
[1673282002286,1.67572735,1342.0,1341.9,14.97024]
[1673282002481,3.39097145,1342.0,1341.9,7.51812]
[1673282002932,3.39097145,1342.0,1341.9,0.066]
[1673282003144,5.0650751,1342.0,1341.7,7.45301]
[1673282003357,4.740831,1342.0,1341.8,7.45258]
[1673282003690,4.674831,1342.0,1341.8,14.97094]
[1673282004060,1.11662735,1341.9,1341.8,0.066]
[1673282004267,1.11662735,1341.9,1341.7,7.45318]
[1673282004506,1.11662735,1341.9,1341.7,7.51918]
[1673282005331,2.83291598,1341.9,1341.7,7.51918]
[1673282005748,10.28507598,1341.9,1341.7,0.066]
[1673282006097,4.16039977,1341.8,1341.6,0.066]
[1673282006327,17.34928735,1341.8,1341.5,3.0]
[1673282006486,9.96231735,1341.8,1341.5,10.45433]
[1673282006704,2.45262735,1341.7,1341.5,7.52034]
[1673282006906,1.336,1341.7,1341.5,22.4288272]
[1673282007116,1.8952,1341.7,1341.5,22.4288272]
[1673282007366,1.336,1341.7,1341.5,22.4288272]
[1673282007688,1.336,1341.7,1341.5,7.5201472]
[1673282007863,1.336,1341.7,1341.5,7.5200672]
[1673282008214,2.45262735,1341.7,1341.5,14.9744072]
[1673282008432,2.45262735,1341.7,1341.5,7.5200672]
[1673282008585,2.45262735,1341.7,1341.5,22.4287472]
[1673282008955,1.336,1341.7,1341.5,22.4287472]
[1673282009146,1.336,1341.7,1341.5,7.5200672]
[1673282010212,2.659,1341.6,1341.5,7.5200672]
[1673282010426,17.56656,1341.6,1341.5,0.0658072]
[1673282010577,17.56656,1341.6,1341.3,30.34199336]
[1673282010578,2.725,1341.6,1341.3,0.06780056]
[1673282010788,1.336,1341.4,1341.3,7.45701336]
[1673282011032,1.336,1341.4,1341.3,7.52282056]
[1673282011258,1.336,1341.5,1341.3,7.52282056]
[1673282011945,1.336,1341.5,1341.3,22.43372056]
[1673282013641,1.336,1341.5,1341.3,7.52282056]
[1673282013888,1.336,1341.5,1341.3,22.43372056]
[1673282018306,1.8852,1341.6,1341.3,22.43372056]
[1673282018469,9.33899,1341.6,1341.3,14.97827056]
[1673282018680,9.40499,1341.6,1341.3,14.97827056]
[1673282018904,8.84579,1341.6,1341.3,14.97827056]
[1673282019568,1.392,1341.6,1341.3,22.43372056]
[1673282019879,1.326,1341.6,1341.3,22.43372056]
[1673282020615,8.77984,1341.6,1341.3,22.43372056]
[1673282020945,8.84584,1341.6,1341.3,22.43372056]
[1673282021255,16.29968,1341.6,1341.3,14.97827056]
[1673282021565,8.84584,1341.6,1341.3,22.43372056]
[1673282021936,1.392,1341.6,1341.3,22.43372056]
[1673282022144,1.326,1341.6,1341.3,22.43372056]
[1673282023564,21.17722735,1341.7,1341.4,3.5]
[1673282023750,1.18262735,1341.7,1341.5,22.36302]
[1673282023946,1.11662735,1341.7,1341.5,22.4288272]
[1673282024357,10.567131,1341.8,1341.5,25.76718292]
[1673282024805,8.89302735,1341.8,1341.5,25.76718292]
[1673282025029,1.18262735,1341.8,1341.7,14.0]
[1673282025216,1.18262735,1341.9,1341.7,28.9722672]
[1673282025429,2.790731,1341.9,1341.7,36.4254972]
[1673282025618,2.87771879,1341.9,1341.7,40.06804692]
[1673282025816,2.790731,1341.9,1341.7,40.06804692]
[1673282026032,2.8790487,1341.8,1341.7,36.4254972]
[1673282026241,1.11662735,1341.8,1341.7,36.4254972]
[1673282026875,2.790731,1341.9,1341.7,40.22315784]
[1673282027101,2.87898758,1341.9,1341.7,40.22315784]
[1673282027747,1.11662735,1341.9,1341.7,40.22315784]
[1673282027939,2.87942565,1341.9,1341.8,26.38032578]
[1673282028162,2.87942565,1341.9,1341.8,26.44613298]
[1673282028559,1.11662735,1341.9,1341.8,26.44613298]
[1673282029115,2.790731,1342.0,1341.8,26.44613298]
[1673282029336,4.55351116,1342.0,1341.8,26.40881362]
[1673282030343,1.11662735,1341.9,1341.8,26.40881362]
[1673282031026,2.856731,1342.0,1341.8,26.40881362]
[1673282031340,1.11662735,1341.9,1341.8,26.37149426]
[1673282031730,2.87946514,1341.9,1341.8,26.37149426]
[1673282031951,2.87922883,1341.9,1341.8,26.37149426]
[1673282032300,2.87922883,1341.9,1341.8,22.38649784]
[1673282032672,1.11662735,1341.9,1341.8,22.38649784]
[1673282033129,2.87923083,1341.9,1341.8,22.38649784]
[1673282033312,1.11662735,1341.9,1341.8,22.34917848]
[1673282033744,2.790731,1342.0,1341.8,22.34917848]
[1673282033985,4.55306601,1342.0,1341.8,22.34917848]
[1673282034350,4.55306601,1342.0,1341.8,22.31185912]
[1673282035357,2.790731,1342.0,1341.8,22.31185912]
[1673282035506,4.55305604,1342.0,1341.8,22.31185912]
[1673282036679,1.11662735,1342.0,1341.8,22.31185912]
[1673282037023,2.87890816,1342.0,1341.8,22.31185912]
[1673282037620,2.87890816,1342.0,1341.8,42.31185912]
[1673282038254,4.55301181,1342.0,1341.8,42.31185912]
[1673282040067,1.11662735,1342.0,1341.8,42.31185912]
[1673282040278,2.87880231,1342.0,1341.8,49.06995473]
[1673282041200,20.899131,1342.1,1341.8,49.06995473]
[1673282041542,1.11662735,1342.0,1341.8,49.06995473]
[1673282041751,2.87871487,1342.0,1341.8,42.31185912]
[1673282041920,1.11662735,1342.0,1341.8,42.31185912]
[1673282042489,2.87874705,1342.0,1341.8,42.31185912]
[1673282042708,2.87874705,1342.0,1341.8,20.0658072]
[1673282042709,4.5528507,1342.0,1341.8,20.0658072]
[1673282042918,4.5528507,1342.0,1341.8,27.5179472]
[1673282042919,1.11662735,1341.9,1341.8,27.5179472]
[1673282043230,2.87894378,1341.9,1341.8,34.9703672]
[1673282043399,2.87894378,1341.9,1341.8,42.4230372]
[1673282043813,1.11662735,1341.9,1341.8,42.4230372]
[1673282044255,1.11662735,1341.9,1341.8,34.9703672]
[1673282044489,1.11662735,1341.9,1341.8,27.5179472]
[1673282044695,1.11662735,1341.9,1341.8,34.9706172]
[1673282044932,1.11662735,1341.9,1341.8,20.0658072]
[1673282045154,2.87886142,1341.9,1341.8,20.0658072]
[1673282045831,2.87886142,1341.9,1341.8,27.5184772]
[1673282046254,2.87886142,1341.9,1341.8,34.9711472]
[1673282047092,2.87886142,1341.9,1341.8,20.0658072]
[1673282047737,4.55296507,1341.9,1341.8,20.0658072]
[1673282048177,3.43633772,1341.9,1341.8,20.0658072]
[1673282048580,4.55069465,1341.9,1341.8,20.0658072]
[1673282049211,4.55069465,1341.9,1341.8,27.5184772]
[1673282049418,2.876591,1341.9,1341.8,27.5184772]
[1673282049838,2.876591,1341.9,1341.8,20.0658072]
[1673282050278,4.55069465,1341.9,1341.8,20.0658072]
[1673282050454,12.00281465,1341.9,1341.8,20.0658072]
[1673282050658,4.61669465,1341.9,1341.8,20.0658072]
[1673282050879,19.45493465,1341.9,1341.8,20.0658072]
[1673282051113,19.52093465,1341.9,1341.8,20.0658072]
[1673282051344,18.40657772,1341.9,1341.8,20.0658072]
[1673282051556,30.54436677,1341.9,1341.8,17.10617823]
[1673282051722,30.54436677,1341.9,1341.8,17.17217823]
[1673282051935,31.10346677,1341.9,1341.8,17.17217823]
[1673282052187,34.60346677,1341.9,1341.8,17.17217823]
[1673282052402,32.61858373,1341.9,1341.8,17.17217823]
[1673282052925,32.61370245,1341.9,1341.8,17.17217823]
[1673282054798,32.61370245,1341.9,1341.8,17.26217823]
[1673282056030,37.74736309,1341.9,1341.8,17.26217823]
[1673282056244,39.75898605,1341.9,1341.8,17.26217823]
[1673282060063,40.55230084,1341.9,1341.8,17.26217823]
[1673282061202,40.55230084,1341.9,1341.3,13.93959336]
[1673282061203,14.55019605,1341.8,1341.3,13.93959336]
[1673282061531,7.45489,1341.4,1341.3,0.06799336]
[1673282061745,22.43067,1341.4,1341.3,0.00199336]
[1673282061962,7.52089,1341.4,1341.3,0.00199336]
[1673282062117,14.97578,1341.4,1341.3,0.00199336]
[1673282062328,7.52089,1341.4,1341.3,0.00199336]
[1673282062843,2.628,1341.4,1341.3,0.00199336]
[1673282063010,2.614,1341.4,1341.3,0.00199336]
[1673282063214,2.562,1341.4,1341.3,0.00199336]
[1673282063386,18.80778,1341.4,1341.3,0.00199336]
[1673282063603,26.32867,1341.4,1341.3,0.00199336]
[1673282064259,31.46233064,1341.4,1341.3,0.00199336]
[1673282064467,38.91112037,1341.4,1341.3,0.00199336]
[1673282064959,39.47042037,1341.4,1341.3,0.00199336]
[1673282065402,38.35512591,1341.4,1341.3,0.00199336]
[1673282065968,40.58571483,1341.4,1341.3,0.00199336]
[1673282066145,45.31592283,1341.4,1341.3,0.00199336]
[1673282066475,39.69846257,1341.4,1341.3,0.00199336]
[1673282066685,38.36246257,1341.4,1341.3,0.00199336]
[1673282066864,42.86267057,1341.4,1341.3,0.00199336]
[1673282067300,43.63898114,1341.4,1341.3,0.00199336]
[1673282067510,50.89721729,1341.4,1341.3,0.00199336]
[1673282068367,49.77768284,1341.4,1341.3,0.00199336]
[1673282068751,16.21221592,1341.4,1341.3,0.00199336]
[1673282069118,7.15574271,1341.4,1341.3,0.00199336]
[1673282069264,2.628,1341.4,1341.3,0.00199336]
[1673282069476,10.01689,1341.4,1341.3,0.00199336]
[1673282069734,2.628,1341.4,1341.3,0.00199336]
[1673282069923,10.01689,1341.4,1341.3,0.00199336]
[1673282070139,2.628,1341.4,1341.3,0.00199336]
[1673282070344,2.562,1341.4,1341.3,0.00199336]
[1673282070780,6.062,1341.4,1341.3,0.00199336]
[1673282070974,6.128,1341.4,1341.3,0.00199336]
[1673282072248,7.24039958,1341.4,1341.3,0.00199336]
[1673282072852,13.58289,1341.4,1341.3,0.00199336]
[1673282073714,24.83544064,1341.4,1341.3,0.00199336]
[1673282074364,32.29033064,1341.4,1341.3,0.00199336]
[1673282074532,32.29033064,1341.4,1341.1,0.07344106]
[1673282074745,31.02633064,1341.4,1341.1,0.07344106]
[1673282076245,23.57144064,1341.4,1341.1,7.52992106]
[1673282076447,23.57144064,1341.4,1341.1,7.59592106]
[1673282076657,17.44355064,1341.4,1341.1,7.59592106]
[1673282077646,24.89844064,1341.4,1341.1,7.59592106]
[1673282078076,32.35333064,1341.4,1341.1,0.13944106]
[1673282078388,32.35333064,1341.4,1341.1,0.07344106]
[1673282078765,4.0593,1341.3,1341.1,0.07344106]
[1673282079180,10.9556,1341.3,1341.1,0.07344106]
[1673282079390,18.47746,1341.3,1341.1,0.07344106]
[1673282080030,11.0216,1341.3,1341.1,0.07344106]
[1673282080268,18.47705,1341.3,1341.1,0.07344106]
[1673282080480,11.02145,1341.3,1341.1,0.07344106]
[1673282080652,7.52145,1341.3,1341.1,0.07344106]
[1673282081203,22.43235,1341.3,1341.1,0.07344106]
[1673282081416,14.9769,1341.3,1341.1,0.07344106]
[1673282082015,0.066,1341.3,1341.1,0.07344106]
[1673282082261,16.79659,1341.4,1341.1,22.44293106]
[1673282082262,0.6253,1341.4,1341.1,22.44293106]
[1673282082452,0.5593,1341.4,1341.1,22.50893106]
[1673282082672,19.5721,1341.5,1341.1,22.50893106]
[1673282083015,19.5721,1341.5,1341.1,27.78073599]
[1673282084588,19.5721,1341.5,1341.1,32.27211168]
[1673282084775,0.066,1341.5,1341.1,32.27211168]
[1673282084989,0.5592,1341.6,1341.2,3.5]
[1673282085201,1.73759958,1341.7,1341.3,29.82136]
[1673282085394,1.72359958,1341.7,1341.4,2.982136]
[1673282085605,1.67159958,1341.7,1341.5,14.90868]
[1673282085810,1.67159958,1341.7,1341.5,14.97468]
[1673282086445,1.67159958,1341.7,1341.5,14.95557913]
[1673282087192,1.67159958,1341.7,1341.5,22.40991913]
[1673282087399,1.67159958,1341.7,1341.5,23.77658536]
[1673282087400,1.11239958,1341.7,1341.5,23.77658536]
[1673282087637,2.71832419,1341.7,1341.5,23.77658536]
[1673282089105,4.38702589,1341.7,1341.5,23.77658536]
[1673282089316,1.11239958,1341.7,1341.5,23.77658536]
[1673282089487,1.11239958,1341.7,1341.5,0.066]
[1673282089488,2.78110128,1341.7,1341.5,0.066]
[1673282089842,1.11239958,1341.6,1341.4,14.90921]
[1673282090018,2.71878491,1341.6,1341.4,14.97521]
[1673282090652,2.71878491,1341.6,1341.4,0.066]
[1673282090869,2.71878491,1341.6,1341.3,29.09646]
[1673282091074,2.71878491,1341.6,1341.4,7.45485]
[1673282091296,2.71878491,1341.6,1341.4,0.066]
[1673282091488,0.27905113,1341.5,1341.4,7.45472]
[1673282091695,0.27905113,1341.5,1341.4,7.52072]
[1673282092325,0.27905113,1341.5,1341.4,0.066]
[1673282092653,0.27905113,1341.5,1341.3,27.98273406]
[1673282092862,0.27905113,1341.5,1341.3,27.98303406]
[1673282093188,0.27905113,1341.5,1341.3,28.77393406]
[1673282093797,0.27905113,1341.5,1341.3,21.31848406]
[1673282094477,1.39145071,1341.5,1341.3,0.05814888]
[1673282094686,8.84579071,1341.5,1341.2,59.07662888]
[1673282095012,8.84579071,1341.5,1341.2,44.16526888]
[1673282095013,8.91179071,1341.5,1341.2,44.16526888]
[1673282095588,23.82047071,1341.5,1341.2,36.70974888]
[1673282095835,16.36613071,1341.5,1341.2,36.70974888]
[1673282096438,16.36613071,1341.5,1341.2,44.16568888]
[1673282096684,16.36613071,1341.5,1341.2,22.70974888]
[1673282096880,16.36613071,1341.5,1341.2,30.16574888]
[1673282097211,23.82047071,1341.5,1341.2,36.70974888]
[1673282097374,8.72437571,1341.5,1341.2,44.12839283]
[1673282097735,8.72442571,1341.5,1341.2,65.83337271]
[1673282097941,1.27003571,1341.5,1341.2,65.83337271]
[1673282098255,1.20403571,1341.5,1341.2,65.83337271]
[1673282098435,8.65837571,1341.5,1341.2,65.79603666]
[1673282098648,8.72437571,1341.5,1341.2,51.79603666]
[1673282098844,1.27003571,1341.5,1341.2,51.79603666]
[1673282099050,1.20403571,1341.5,1341.2,51.79603666]
[1673282099289,1.20403571,1341.5,1341.2,51.75870061]
[1673282100235,0.09163613,1341.5,1341.2,51.75870061]
[1673282100521,0.09163613,1341.5,1341.2,22.59774073]
[1673282100522,23.2123922,1341.5,1341.2,22.59774073]
[1673282100663,2.74551373,1341.4,1341.2,0.05814888]
[1673282100878,1.11239958,1341.4,1341.2,14.91154]
[1673282101094,1.11239958,1341.4,1341.2,14.96968888]
[1673282101734,1.11239958,1341.4,1341.2,22.42568888]
[1673282101890,2.87273741,1341.5,1341.2,22.42568888]
[1673282102763,10.32718741,1341.5,1341.2,0.05814888]
[1673282102984,2.93873741,1341.5,1341.2,7.45598]
[1673282103205,2.87473741,1341.5,1341.2,22.41412888]
[1673282103405,2.87473741,1341.5,1341.2,22.41612888]
[1673282103406,2.87273741,1341.5,1341.2,22.41612888]
[1673282105054,2.77852741,1341.5,1341.2,22.41612888]
[1673282105270,4.41182512,1341.5,1341.2,25.76089901]
[1673282105483,2.74312342,1341.5,1341.2,25.76089901]
[1673282105682,1.10982571,1341.5,1341.2,25.76089901]
[1673282105901,2.74299182,1341.5,1341.2,25.76089901]
[1673282107274,4.41369352,1341.5,1341.2,0.04614888]
[1673282107488,4.41369352,1341.5,1341.1,0.07344106]
[1673282107489,18.21059781,1341.5,1341.1,0.07344106]
[1673282107829,16.6434317,1341.5,1341.1,0.07344106]
[1673282108207,1.63342977,1341.4,1341.1,0.07344106]
[1673282108410,9.08854977,1341.4,1341.1,4.05132752]
[1673282108773,0.066,1341.4,1341.1,18.96444752]
[1673282108967,1.7347017,1341.5,1341.1,26.4691564]
[1673282109154,5.53326014,1341.5,1341.1,26.4691564]
[1673282109368,9.09926014,1341.5,1341.1,26.4691564]
[1673282109597,1.63396952,1341.4,1341.1,26.4691564]
[1673282110879,1.7347017,1341.5,1341.1,27.31376062]
[1673282111194,1.63432877,1341.4,1341.1,27.31376426]
[1673282111402,1.6687017,1341.5,1341.3,14.9109]
[1673282111560,6.80303649,1341.5,1341.3,14.95904888]
[1673282111776,1.63433479,1341.4,1341.3,14.95904888]
[1673282112307,0.066,1341.5,1341.3,27.75774114]
[1673282112521,4.45849062,1341.7,1341.3,27.75774114]
[1673282112522,1.7347017,1341.7,1341.4,4.09877411]
[1673282112729,13.38362507,1341.8,1341.4,4.09877411]
[1673282112730,12.33009062,1341.8,1341.5,29.81736]
[1673282112965,1.63430788,1341.7,1341.5,29.86550888]
[1673282113267,3.96529062,1341.8,1341.6,2.98655089]
[1673282113268,0.066,1341.8,1341.6,2.98655089]
[1673282113472,4.45839062,1341.9,1341.7,14.90646]
[1673282113473,3.89929062,1341.9,1341.7,14.90646]
[1673282113683,5.48673486,1341.9,1341.7,14.95460888]
[1673282113910,5.55273486,1341.9,1341.7,14.95460888]
[1673282114101,1.58744424,1341.8,1341.7,14.95460888]
[1673282114336,3.25614594,1341.8,1341.7,22.40783888]
[1673282114508,3.25614594,1341.8,1341.7,14.95460888]
[1673282114724,1.58744424,1341.8,1341.7,22.40783888]
[1673282114939,1.58744424,1341.8,1341.7,24.64862277]
[1673282115177,1.11540158,1341.8,1341.7,24.64862277]
[1673282115405,2.70284582,1341.8,1341.7,24.64862277]
[1673282117557,1.11540158,1341.8,1341.7,24.64862277]
[1673282118508,2.74573871,1341.8,1341.7,24.64862277]
[1673282119349,1.11540158,1341.8,1341.7,24.64862277]
[1673282119813,2.78410328,1341.9,1341.7,24.64862277]
[1673282120005,2.78410328,1341.9,1341.8,24.82287228]
[1673282120220,2.751285,1341.9,1341.8,24.87102116]
[1673282121653,1.11540158,1341.9,1341.8,24.87102116]
[1673282122035,2.78410328,1342.0,1341.8,24.87102116]
[1673282122338,1.11540158,1341.9,1341.8,24.87102116]
[1673282124278,2.85010328,1342.0,1341.8,26.20702116]
[1673282124491,2.78410328,1342.0,1341.8,26.2090515]
[1673282124961,4.41931011,1342.0,1341.8,26.2090515]
[1673282125169,2.75060841,1342.0,1341.8,26.2090515]
[1673282125336,4.42088137,1342.0,1341.8,26.2070515]
[1673282125544,4.41888137,1342.0,1341.8,26.2090515]
[1673282126272,2.78410328,1342.0,1341.8,26.2090515]
[1673282126483,1.11540158,1342.0,1341.8,26.2090515]
[1673282126947,2.75001248,1342.0,1341.9,2.62090515]
[1673282127275,2.85010328,1342.1,1341.9,24.97726515]
[1673282127435,2.78410328,1342.1,1341.9,25.02541403]
[1673282127646,4.41820741,1342.1,1341.9,25.02541403]
[1673282129152,1.11540158,1342.1,1341.9,25.02541403]
[1673282129469,1.18140158,1342.2,1342.0,8.96320204]
[1673282129660,1.11540158,1342.2,1342.1,27.48666064]
[1673282129868,2.92186423,1342.3,1342.1,26.19880952]
[1673282130102,2.92186423,1342.3,1342.1,26.01640597]
[1673282130103,1.11540158,1342.2,1342.1,26.01640597]
[1673282130502,2.74860421,1342.2,1342.1,26.01640597]
[1673282130969,2.98786423,1342.3,1342.1,26.01640597]
[1673282131170,1.25316253,1342.3,1342.1,26.01640597]
[1673282133821,1.25316253,1342.3,1342.1,22.40114888]
[1673282134438,1.25316253,1342.3,1342.1,26.19880952]
[1673282135183,1.25316253,1342.3,1342.1,22.40114888]
[1673282135977,1.25316253,1342.3,1342.1,14.94949888]
[1673282136231,2.88449097,1342.3,1342.1,22.40049888]
[1673282136443,1.25316253,1342.3,1342.1,22.40049888]
[1673282137496,1.25316253,1342.3,1342.1,7.49868888]
[1673282137712,1.25316253,1342.3,1342.1,22.40068888]
[1673282138023,4.55283695,1342.3,1342.1,22.40068888]
[1673282138285,1.25316253,1342.3,1342.1,22.40068888]
[1673282138862,1.7347017,1342.4,1342.3,2.74683747]
[1673282139137,0.1636112,1342.2,1342.0,7.45152]
[1673282139342,0.1636112,1342.2,1342.0,0.066]
[1673282139649,0.1636112,1342.2,1341.9,45.46151]
[1673282140177,1.2e-06,1342.2,1342.0,8.84881547]
[1673282140387,0.14437623,1342.5,1342.1,41.59371547]
[1673282140621,0.14437623,1342.5,1342.2,7.95703219]
[1673282140779,0.14437623,1342.5,1342.3,22.34967]
[1673282140975,0.14437623,1342.5,1342.3,22.41567]
[1673282142608,0.14437623,1342.5,1342.3,22.40118788]
[1673282143230,0.14437623,1342.5,1342.3,26.19884852]
[1673282143540,0.14437623,1342.5,1342.4,24.96790485]
[1673282143752,0.14437623,1342.5,1342.4,25.03390485]
[1673282144121,0.14437623,1342.5,1342.4,28.53390485]
[1673282144331,0.14437623,1342.5,1342.4,29.09280485]
[1673282144757,0.14437623,1342.5,1342.4,25.03190485]
[1673282144970,0.14437623,1342.5,1342.4,25.03390485]
[1673282145433,0.14437623,1342.5,1342.4,28.53390485]
[1673282145753,0.14437623,1342.5,1342.4,33.02780555]
[1673282145957,0.14437623,1342.5,1342.4,50.53390485]
[1673282146167,0.14437623,1342.5,1342.4,53.53390485]
[1673282146335,0.14437623,1342.5,1342.4,53.52212032]
[1673282146905,0.14437623,1342.5,1342.4,62.57003884]
[1673282147332,0.7418148,1342.8,1342.4,62.57003884]
[1673282147643,0.7418148,1342.8,1342.6,43.79292]
[1673282147962,0.7418148,1342.8,1342.7,8.29156134]
[1673282148264,0.7418148,1342.8,1342.7,29.75292134]
[1673282148490,4.8e-06,1342.8,1342.7,29.75292134]
[1673282148791,5.16731695,1343.2,1342.7,34.81172134]
[1673282148966,5.16731695,1343.2,1342.9,14.0]
[1673282148967,6.34265313,1343.2,1342.9,14.0]
[1673282149180,6.34265313,1343.2,1343.0,18.68968064]
[1673282149384,1.17533618,1343.2,1343.0,18.75568064]
[1673282149738,1.11133618,1343.2,1343.0,7.51001]
[1673282150049,6.34265313,1343.3,1343.0,7.51201]
[1673282150267,6.34265313,1343.3,1343.0,18.654301]
[1673282150436,4.67533618,1343.3,1343.0,22.45196164]
[1673282150792,4.60933618,1343.3,1343.0,3.762281]
[1673282150982,6.27665313,1343.3,1342.9,29.51688]
[1673282151198,6.27665313,1343.3,1342.9,33.31454064]
[1673282151199,4.67533618,1343.3,1342.9,33.31454064]
[1673282151522,6.27665313,1343.3,1343.0,14.89201]
[1673282151717,6.27665313,1343.3,1343.0,14.95801]
[1673282151718,6.34265313,1343.3,1343.0,14.95801]
[1673282151932,4.90699682,1343.2,1343.0,0.066]
[1673282152105,3.5,1343.1,1342.7,21.51316]
[1673282152316,3.5,1343.1,1342.7,28.96058]
[1673282152577,3.5,1343.1,1342.7,21.51316]
[1673282152578,4.60933618,1343.1,1342.7,21.51316]
[1673282152737,4.60933618,1343.1,1342.7,0.066]
[1673282152738,8.40699682,1343.1,1342.7,0.066]
[1673282152945,8.47299682,1343.1,1342.7,7.44759]
[1673282153167,8.47299682,1343.1,1342.7,7.51359]
[1673282154312,1.17533618,1343.1,1342.9,14.0]
[1673282154519,0.066,1343.2,1343.0,22.33803]
[1673282154777,1.66783618,1343.3,1343.0,22.40403]
[1673282155096,4.2358452,1343.3,1343.0,22.40403]
[1673282155692,4.2358452,1343.3,1343.0,0.066]
[1673282155897,11.6803852,1343.3,1342.9,35.82308]
[1673282156114,3.5,1343.2,1342.9,35.82348]
[1673282156515,4.60933618,1343.2,1342.9,35.82348]
[1673282156756,4.60933618,1343.2,1342.9,43.27005]
[1673282157019,4.60933618,1343.2,1342.9,35.82348]
[1673282157280,10.55423618,1343.2,1342.9,14.066]
[1673282157493,18.06513618,1343.2,1342.9,14.066]
[1673282157671,19.73245313,1343.2,1342.9,14.066]
[1673282157885,10.62023618,1343.2,1342.9,14.066]